bitfinex/quotes_BTCUSD_20260104
["timestamp","ask_amount","ask_price","bid_price","bid_amount"]
[1767549065347,0.01094738,91346.0,91343.0,0.04593945]
[1767549065549,0.06568394,91347.0,91343.0,0.04593945]
[1767549066564,0.01094726,91347.0,91343.0,0.04593945]
[1767549066901,0.01094702,91349.0,91345.0,0.04598378]
[1767549067083,0.01094714,91348.0,91345.0,0.04598378]
[1767549069150,0.06568317,91348.0,91345.0,0.04598378]
[1767549069999,0.00104333,91346.0,91342.0,0.06568693]
[1767549070196,0.01094726,91347.0,91343.0,0.04598378]
[1767549070403,0.06568317,91348.0,91343.0,0.05693152]
[1767549070718,0.01094714,91348.0,91344.0,0.04598378]
[1767549071425,0.06568369,91347.0,91344.0,0.04598378]
[1767549071602,0.01094726,91347.0,91344.0,0.04498478]
[1767549072004,0.05473753,91345.0,91344.0,0.04494046]
[1767549072228,0.01094714,91348.0,91326.0,0.01094678]
[1767549072229,0.01094786,91342.0,91326.0,0.01094678]
[1767549072429,0.01094786,91342.0,91316.0,0.32852748]
[1767549072430,0.01094738,91346.0,91334.0,0.05474409]
[1767549072594,0.06568867,91340.0,91335.0,0.05693248]
[1767549072792,0.0109481,91340.0,91335.0,0.05693248]
[1767549073048,0.06468941,91341.0,91336.0,0.01094858]
[1767549073374,0.0109481,91340.0,91335.0,0.06569214]
[1767549073509,0.06468941,91341.0,91336.0,0.01094858]
[1767549073703,0.06568719,91342.0,91336.0,0.01094858]
[1767549074126,0.06568719,91342.0,91337.0,0.01090414]
[1767549074328,0.06568719,91342.0,91335.0,0.06569214]
[1767549074329,0.06568843,91341.0,91335.0,0.0109487]
[1767549074528,0.0109481,91340.0,91335.0,0.0109487]
[1767549074703,0.01094822,91339.0,91333.0,0.05474413]
[1767549074910,0.000999,91333.0,91332.0,0.04598378]
[1767549075138,0.01094834,91338.0,91331.0,0.03282918]
[1767549075313,0.01094834,91338.0,91333.0,0.01094894]
[1767549075512,0.01094858,91336.0,91333.0,0.00059672]
[1767549075869,0.01094846,91337.0,91333.0,0.00059672]
[1767549076070,0.0109481,91340.0,91333.0,0.00059672]
[1767549076196,0.01094834,91338.0,91333.0,0.00059672]
[1767549076598,0.01094834,91338.0,91333.0,0.01154566]
[1767549076845,0.01094834,91338.0,91334.0,0.01094882]
[1767549077059,0.01094846,91337.0,91333.0,0.00059672]
[1767549077267,0.01094858,91336.0,91333.0,0.00059672]
[1767549077481,0.06569186,91337.0,91333.0,0.00059672]
[1767549077643,0.01094846,91337.0,91334.0,0.04598378]
[1767549077840,0.06569099,91337.0,91334.0,0.04598378]
[1767549078065,0.01094846,91337.0,91334.0,0.04598378]
[1767549078601,0.06569091,91337.0,91334.0,0.04598378]
[1767549078820,0.71627848,91514.0,91311.0,0.04376]
[1767549078821,0.0109493,91330.0,91311.0,0.04376]
[1767549078936,0.01094966,91327.0,91322.0,0.05693404]
[1767549079141,0.06569726,91328.0,91323.0,0.01095014]
[1767549079380,0.06569726,91328.0,91322.0,0.01095026]
[1767549079381,0.06569846,91327.0,91322.0,0.01095026]
[1767549079585,0.06569846,91327.0,91322.0,0.03283026]
[1767549079741,0.01094954,91328.0,91327.0,0.000999]
[1767549079949,0.01094966,91327.0,91322.0,0.08758106]
[1767549080144,0.06569764,91328.0,91323.0,0.01095014]
[1767549080400,0.0109499,91325.0,91322.0,0.02188]
[1767549080702,0.05475068,91324.0,91322.0,0.02188]
[1767549080879,0.0109499,91325.0,91314.0,0.01110462]
[1767549081124,0.0109499,91325.0,91319.0,0.01143904]
[1767549081328,0.06569917,91326.0,91320.0,0.0109505]
[1767549081712,0.0109499,91325.0,91320.0,0.06570285]
[1767549081907,0.06569917,91326.0,91321.0,0.01095038]
[1767549082098,0.06569917,91326.0,91322.0,0.04598378]
[1767549082298,0.01094966,91327.0,91322.0,0.05693404]
[1767549083326,0.06569819,91327.0,91322.0,0.04598378]
[1767549083572,0.0109499,91325.0,91322.0,0.04598378]
[1767549083775,0.01094978,91326.0,91322.0,0.04598378]
[1767549084315,0.0109499,91325.0,91322.0,0.04598378]
[1767549085645,0.06569879,91326.0,91322.0,0.04598378]
[1767549086254,0.06569958,91325.0,91322.0,0.04598378]
[1767549086887,0.0109499,91325.0,91322.0,0.04598378]
[1767549089143,0.06569876,91326.0,91322.0,0.04598378]
[1767549089342,0.01094978,91326.0,91325.0,0.000999]
[1767549089799,0.01094978,91326.0,91322.0,0.04598378]
[1767549089800,0.06569871,91326.0,91322.0,0.04598378]
[1767549091056,0.0109499,91325.0,91322.0,0.04598378]
[1767549091501,0.06569952,91325.0,91322.0,0.04598378]
[1767549092070,0.0109499,91325.0,91322.0,0.04598378]
[1767549092509,0.0109499,91325.0,91322.0,0.04607839]
[1767549094295,0.06569871,91326.0,91322.0,0.04607839]
[1767549094542,0.06569772,91328.0,91323.0,0.06014471]
[1767549094698,0.01094966,91327.0,91323.0,0.04905279]
[1767549095109,0.06569877,91326.0,91323.0,0.04905279]
[1767549095756,0.06569807,91327.0,91323.0,0.04905279]
[1767549096103,0.01094966,91327.0,91323.0,0.04905279]
[1767549096272,0.01094966,91327.0,91323.0,0.06000293]
[1767549096473,0.06569778,91328.0,91323.0,0.06000293]
[1767549096676,0.01094966,91327.0,91323.0,0.04905279]
[1767549097897,0.05474999,91325.0,91323.0,0.04905279]
[1767549098256,0.0656987,91326.0,91323.0,0.04905279]
[1767549099271,0.05474969,91325.0,91323.0,0.04905279]
[1767549100953,0.05475012,91324.0,91323.0,0.04905279]
[1767549101129,0.05475071,91323.0,91322.0,9.461e-05]
[1767549101867,0.05475012,91324.0,91322.0,9.461e-05]
[1767549102038,0.05475071,91323.0,91322.0,9.461e-05]
[1767549103227,0.06570085,91323.0,91319.0,0.00048842]
[1767549103430,0.06570085,91323.0,91319.0,0.04968299]
[1767549103659,0.01095026,91322.0,91319.0,0.04968299]
[1767549103865,0.01095014,91323.0,91319.0,0.04968299]
[1767549104081,0.01095014,91323.0,91319.0,0.06063361]
[1767549104282,0.01095026,91322.0,91319.0,0.04968299]
[1767549104646,0.06570094,91323.0,91319.0,0.04968299]
[1767549106136,0.06570098,91323.0,91319.0,0.04968299]
[1767549106339,0.01094966,91327.0,91320.0,0.06014507]
[1767549106614,0.0109499,91325.0,91321.0,0.04919457]
[1767549106818,0.0099509,91325.0,91321.0,0.04919457]
[1767549107008,0.0099509,91325.0,91321.0,0.06014495]
[1767549107419,0.0099509,91325.0,91321.0,0.04919457]
[1767549107629,0.06569916,91326.0,91321.0,0.06014495]
[1767549108633,0.0109499,91325.0,91321.0,0.06014495]
[1767549110231,0.06569961,91325.0,91321.0,0.04919457]
[1767549110835,0.01095002,91324.0,91319.0,0.0661921]
[1767549111043,0.01095002,91324.0,91316.0,0.02188]
[1767549111044,0.00014178,91318.0,91316.0,0.02188]
[1767549111302,0.00014178,91318.0,91316.0,0.02169391]
[1767549111487,0.01095074,91318.0,91314.0,0.01110462]
[1767549111701,0.0109505,91320.0,91316.0,0.04919457]
[1767549111857,0.05475225,91321.0,91316.0,0.04919457]
[1767549111858,0.06570263,91321.0,91316.0,0.04919457]
[1767549112202,0.0109505,91320.0,91316.0,0.01095098]
[1767549112552,0.0109505,91320.0,91316.0,0.06014555]
[1767549114187,0.0657026,91321.0,91316.0,0.11490042]
[1767549114387,0.06570263,91322.0,91317.0,0.06570506]
[1767549114599,0.01095002,91324.0,91322.0,0.000488]
[1767549114797,0.06570035,91324.0,91322.0,0.000488]
[1767549115020,0.06570035,91324.0,91318.0,0.06570433]
[1767549115212,0.06570035,91324.0,91319.0,0.10394761]
[1767549115407,0.01095014,91323.0,91319.0,0.06014519]
[1767549116395,0.06570035,91324.0,91319.0,0.06014519]
[1767549116711,0.01095014,91323.0,91319.0,0.04919457]
[1767549116917,0.01095026,91322.0,91319.0,0.04919457]
[1767549117122,0.06570207,91322.0,91319.0,0.04868357]
[1767549117700,0.01095014,91323.0,91319.0,0.04868357]
[1767549117942,0.01095002,91324.0,91319.0,0.11438696]
[1767549118549,0.01095014,91323.0,91319.0,0.04868357]
[1767549118966,0.06570027,91324.0,91319.0,0.05963419]
[1767549119481,0.06570027,91324.0,91319.0,0.11438715]
[1767549119644,0.01095002,91324.0,91320.0,0.01090619]
[1767549120090,0.01095002,91324.0,91319.0,0.11438715]
[1767549120285,0.01095002,91324.0,91320.0,0.0109505]
[1767549120638,0.01095002,91324.0,91320.0,0.05649135]
[1767549121234,0.06618799,91325.0,91320.0,0.05649135]
[1767549121235,0.00048841,91325.0,91320.0,0.05649135]
[1767549121479,0.01143831,91325.0,91320.0,0.05649135]
[1767549121804,0.01095002,91324.0,91320.0,0.05649135]
[1767549122143,0.00048841,91325.0,91321.0,0.01095038]
[1767549122346,0.0661879,91325.0,91321.0,0.04554085]
[1767549122586,0.00048841,91325.0,91321.0,0.11124314]
[1767549122781,0.00048841,91325.0,91322.0,0.01095026]
[1767549123023,0.00048841,91325.0,91321.0,0.11124312]
[1767549123419,0.00048841,91325.0,91322.0,0.01095026]
[1767549123545,4.1e-07,91325.0,91321.0,0.05649123]
[1767549124100,0.01095031,91325.0,91321.0,0.05649123]
[1767549124450,4.1e-07,91325.0,91321.0,0.05649123]
[1767549124727,0.01094978,91326.0,91321.0,0.05649123]
[1767549124999,0.01094978,91326.0,91321.0,0.11124277]
[1767549125296,0.06569886,91326.0,91321.0,0.11124277]
[1767549125796,0.06569945,91325.0,91321.0,0.04554085]
[1767549126014,0.0656996,91325.0,91321.0,0.04554085]
[1767549126578,0.0109499,91325.0,91321.0,0.05649123]
[1767549126754,0.06569956,91325.0,91321.0,0.04554085]
[1767549126972,0.06569886,91326.0,91321.0,0.05649123]
[1767549127177,0.0109499,91325.0,91321.0,0.05649123]
[1767549128623,0.01094978,91326.0,91321.0,0.05649123]
[1767549128847,0.05474889,91328.0,91322.0,0.06570105]
[1767549128848,0.05474814,91328.0,91322.0,0.06570105]
[1767549129040,0.06569817,91327.0,91322.0,0.06570105]
[1767549129384,0.01094966,91327.0,91322.0,0.06570105]
[1767549129609,0.01094978,91326.0,91322.0,0.01095026]
[1767549129804,0.01094978,91326.0,91321.0,0.1112431]
[1767549130154,0.01094978,91326.0,91322.0,0.01095026]
[1767549130496,0.01094978,91326.0,91322.0,0.05649111]
[1767549130696,0.01094966,91327.0,91322.0,0.10905559]
[1767549130949,0.01094966,91327.0,91322.0,0.06351474]
[1767549132248,0.01094978,91326.0,91322.0,0.06351474]
[1767549132449,0.05474817,91328.0,91326.0,0.000999]
[1767549132854,0.01094966,91327.0,91323.0,0.01095014]
[1767549133060,0.06569807,91327.0,91322.0,0.06351545]
[1767549133198,0.06569771,91328.0,91323.0,0.01095014]
[1767549133626,0.01094966,91327.0,91321.0,0.04601926]
[1767549133826,0.01095002,91324.0,91321.0,0.04601926]
[1767549134233,0.06570057,91324.0,91321.0,0.04601926]
[1767549136351,0.0656992,91326.0,91324.0,0.000999]
[1767549136879,0.0656992,91326.0,91321.0,0.05696964]
[1767549136880,0.0656992,91326.0,91322.0,0.01095026]
[1767549138391,0.06569883,91326.0,91321.0,0.11172149]
[1767549138770,0.06569844,91327.0,91322.0,0.05649111]
[1767549140192,0.06569844,91327.0,91322.0,0.11124223]
[1767549140599,0.01094966,91327.0,91323.0,0.01095014]
[1767549140767,0.0656981,91327.0,91322.0,0.11124223]
[1767549141507,0.01094966,91327.0,91323.0,0.01095014]
[1767549142503,0.01094978,91326.0,91322.0,0.05649111]
[1767549142654,0.01094978,91326.0,91322.0,0.04554085]
[1767549143007,0.06569912,91326.0,91322.0,0.04554085]
[1767549143998,0.06569813,91327.0,91322.0,0.11124239]
[1767549144173,0.01094954,91328.0,91323.0,0.06570062]
[1767549144371,0.00140862,91327.0,91323.0,0.06570062]
[1767549144593,0.01235828,91327.0,91323.0,0.00954152]
[1767549144797,0.0656977,91328.0,91323.0,0.06429205]
[1767549147116,0.0656977,91328.0,91319.0,0.05475251]
[1767549147270,0.0656977,91328.0,91323.0,0.01095014]
[1767549147673,0.01094966,91327.0,91323.0,0.01095014]
[1767549148073,0.06569799,91327.0,91322.0,0.06570101]
[1767549148274,0.01094966,91327.0,91323.0,0.01095014]
[1767549148515,0.01094966,91327.0,91323.0,0.05649099]
[1767549149140,0.06569783,91328.0,91323.0,0.11124147]
[1767549149304,0.06569783,91328.0,91324.0,0.04554085]
[1767549149511,0.01094954,91328.0,91324.0,0.05649087]
[1767549149676,0.01094954,91328.0,91324.0,0.04554085]
[1767549150327,0.01094954,91328.0,91324.0,0.05649087]
[1767549150489,0.01094954,91328.0,91324.0,0.04554085]
[1767549150694,0.01094954,91328.0,91324.0,0.05649087]
[1767549151149,0.01086088,91328.0,91324.0,0.05649087]
[1767549151614,0.01077222,91328.0,91324.0,0.05649087]
[1767549151814,0.06552012,91328.0,91324.0,0.04554085]
[1767549152017,0.06545139,91328.0,91324.0,0.04554085]
[1767549152213,0.06569665,91329.0,91325.0,0.04834557]
[1767549152404,0.06569737,91328.0,91325.0,0.04834557]
[1767549152603,0.01094978,91326.0,91322.0,0.01095026]
[1767549152822,0.00944819,91326.0,91322.0,0.01095026]
[1767549153476,0.0656984,91327.0,91326.0,0.000999]
[1767549153678,0.0656984,91327.0,91323.0,0.04834557]
[1767549153878,0.01094978,91326.0,91322.0,0.01095026]
[1767549154034,0.01094978,91326.0,91323.0,0.04834557]
[1767549154242,0.01094978,91326.0,91245.0,0.05454489]
[1767549154243,0.01095002,91324.0,91318.0,0.04622333]
[1767549154549,0.01095002,91324.0,91314.0,0.01110462]
[1767549154550,0.01095062,91319.0,91314.0,0.01110462]
[1767549154754,0.06570426,91319.0,91314.0,0.0001534]
[1767549155098,0.06570426,91319.0,91314.0,0.01110462]
[1767549155228,0.06570426,91319.0,91314.0,0.06586073]
[1767549155430,0.06570355,91320.0,91315.0,0.0109511]
[1767549155660,0.01095062,91319.0,91314.0,0.06586073]
[1767549155816,0.01095002,91324.0,91314.0,0.06586073]
[1767549155817,0.78080364,91350.0,91319.0,0.000999]
[1767549156018,0.06570171,91322.0,91319.0,0.000999]
[1767549156222,0.06570248,91321.0,91316.0,0.01095098]
[1767549156497,0.054752,91321.0,91316.0,0.01095098]
[1767549156718,0.06570161,91322.0,91317.0,0.05475392]
[1767549156893,0.06570092,91323.0,91318.0,0.06570419]
[1767549157415,0.06570024,91324.0,91319.0,0.06570355]
[1767549157580,0.01095002,91324.0,91318.0,0.06570419]
[1767549158321,0.01095026,91322.0,91316.0,0.06570566]
[1767549158468,0.01095026,91322.0,91318.0,0.01095074]
[1767549158674,0.01095026,91322.0,91317.0,0.065705]
[1767549159337,0.01095026,91322.0,91318.0,0.04622333]
[1767549159692,0.01095026,91322.0,91318.0,0.05717407]
[1767549160141,0.06570168,91322.0,91319.0,0.04622333]
[1767549160341,0.01095026,91322.0,91319.0,0.04622333]
[1767549160674,0.06570086,91323.0,91319.0,0.05717395]
[1767549160944,0.06570086,91323.0,91319.0,0.04622333]
[1767549161511,0.01095014,91323.0,91319.0,0.04622333]
[1767549161821,0.06514651,91323.0,91319.0,0.04622333]
[1767549162030,0.06459215,91323.0,91318.0,0.06570443]
[1767549162227,0.01095026,91322.0,91317.0,0.06570505]
[1767549162428,0.01095026,91322.0,91318.0,0.01095074]
[1767549162629,0.06459215,91323.0,91318.0,0.01095074]
[1767549163622,0.01095026,91322.0,91318.0,0.01095074]
[1767549163819,0.01095026,91322.0,91314.0,0.05490942]
[1767549163820,0.06570247,91321.0,91314.0,0.05490942]
[1767549164065,0.0109505,91320.0,91315.0,0.0109511]
[1767549164629,0.01095062,91319.0,91315.0,0.0109511]
[1767549164828,0.0657033,91320.0,91315.0,0.06570655]
[1767549165097,0.0657033,91320.0,91316.0,0.04622333]
[1767549165249,0.01095038,91321.0,91316.0,0.11192913]
[1767549165455,0.01095038,91321.0,91317.0,0.04622333]
[1767549165635,0.06570247,91321.0,91317.0,0.04622333]
[1767549166029,0.06570319,91320.0,91317.0,0.04622333]
[1767549166275,0.0109505,91320.0,91317.0,0.04622333]
[1767549166484,0.0657031,91320.0,91317.0,0.04622333]
[1767549167268,0.0109505,91320.0,91317.0,0.04622333]
[1767549167979,0.06570311,91320.0,91317.0,0.04622333]
[1767549168750,0.06570165,91322.0,91317.0,0.05717419]
[1767549169913,0.06570163,91322.0,91318.0,0.04622333]
[1767549170060,0.06470258,91322.0,91319.0,0.04622333]
[1767549170266,0.06470258,91322.0,91319.0,0.04617794]
[1767549170460,0.00995126,91322.0,91319.0,0.04617794]
[1767549170679,0.05475191,91321.0,91319.0,0.04517894]
[1767549170839,0.05475251,91320.0,91319.0,0.04517894]
[1767549171642,0.05475532,91316.0,91314.0,0.0001534]
[1767549171853,0.21900522,91323.0,91305.0,0.0109523]
[1767549171854,0.0109517,91310.0,91305.0,0.11193666]
[1767549171967,0.0109517,91310.0,91306.0,0.04622333]
[1767549171968,0.00995282,91309.0,91306.0,0.04622333]
[1767549173210,0.01095146,91312.0,91308.0,0.04622333]
[1767549173741,0.06570848,91313.0,91308.0,0.11193487]
[1767549174236,0.06570848,91313.0,91309.0,0.04622333]
[1767549175340,0.06570848,91313.0,91308.0,0.06571154]
[1767549176070,0.04917235,91312.0,91308.0,0.06571154]
[1767549176268,0.06012381,91312.0,91308.0,0.01095194]
[1767549176470,0.06012381,91312.0,91305.0,0.06571325]
[1767549176471,0.01095182,91309.0,91305.0,0.0109523]
[1767549176602,0.01095194,91308.0,91305.0,0.04622333]
[1767549176791,0.01095194,91308.0,91303.0,0.0657151]
[1767549176994,0.01095194,91308.0,91299.0,0.03283302]
[1767549176995,0.01095254,91303.0,91297.0,0.02188]
[1767549177237,0.01095254,91303.0,91298.0,0.02188]
[1767549177238,0.01035607,91301.0,91298.0,0.02188]
[1767549177404,0.01095266,91302.0,91298.0,0.02188]
[1767549177605,0.06571527,91303.0,91298.0,0.08759865]
[1767549178015,0.06571456,91304.0,91298.0,0.08759865]
[1767549178211,0.01095266,91302.0,91298.0,0.01095314]
[1767549178900,0.06571537,91303.0,91299.0,0.04622333]
[1767549180287,0.05476344,91302.0,91299.0,0.04622333]
[1767549180461,0.0657161,91302.0,91299.0,0.04522433]
[1767549180795,0.05476451,91300.0,91299.0,0.04522433]
[1767549181140,0.0547641,91301.0,91299.0,0.04522433]
[1767549181339,0.06571605,91302.0,91299.0,0.04522433]
[1767549181627,0.05476451,91300.0,91299.0,0.04522433]
[1767549181981,0.06571608,91302.0,91299.0,0.04522433]
[1767549182302,0.05476444,91301.0,91299.0,0.04522433]
[1767549182479,0.05476444,91301.0,91299.0,0.04518002]
[1767549182686,0.06571608,91302.0,91299.0,0.04513571]
[1767549182849,0.01095254,91303.0,91299.0,0.04513571]
[1767549183056,0.06571464,91304.0,91303.0,0.0481947]
[1767549183295,0.06571464,91304.0,91303.0,0.04815039]
[1767549186095,0.06571464,91304.0,91303.0,0.04810608]
[1767549186429,0.06571464,91304.0,91303.0,0.04806178]
[1767549187994,0.01095314,91298.0,91296.0,0.0481947]
[1767549188249,0.01095302,91299.0,91296.0,0.0481947]
[1767549188250,0.06571824,91299.0,91296.0,0.0481947]
[1767549188412,0.05476624,91298.0,91296.0,0.0481947]
[1767549188884,0.05476631,91297.0,91296.0,0.0481947]
[1767549189634,0.05476631,91297.0,91296.0,0.0481504]
[1767549190014,0.05476631,91297.0,91296.0,0.0481061]
[1767549191994,0.05476631,91297.0,91296.0,0.04816518]
[1767549193466,0.05476624,91298.0,91296.0,0.04816518]
[1767549194011,0.05476691,91296.0,91295.0,1e-08]
[1767549194199,0.05476691,91296.0,91295.0,9.463e-05]
[1767549194783,0.05476691,91296.0,91295.0,0.04828933]
[1767549195298,0.05476631,91297.0,91296.0,0.0491937]
[1767549195440,0.05476631,91297.0,91296.0,0.0481947]
[1767549199297,0.05476631,91297.0,91295.0,9.463e-05]
[1767549199298,0.05476691,91296.0,91295.0,9.463e-05]
[1767549201487,0.05476691,91296.0,91295.0,5.033e-05]
[1767549203240,0.05476631,91297.0,91288.0,0.05914904]
[1767549203241,0.01095374,91293.0,91288.0,0.05914904]
[1767549203436,0.06572253,91293.0,91289.0,0.0481947]
[1767549203639,0.01095386,91292.0,91289.0,0.0481947]
[1767549203813,0.01020182,91292.0,91288.0,0.01095434]
[1767549204018,0.06475867,91292.0,91287.0,0.03287446]
[1767549204203,0.01095398,91291.0,91287.0,0.02192]
[1767549204406,0.06572432,91291.0,91287.0,0.02192]
[1767549204910,0.06572288,91293.0,91291.0,0.000999]
[1767549205129,0.01095386,91292.0,91289.0,0.0481947]
[1767549205426,0.06572332,91292.0,91289.0,0.0481947]
[1767549205924,0.01095386,91292.0,91289.0,0.0481947]
[1767549206571,0.01095386,91292.0,91290.0,0.02192]
[1767549206912,0.06572366,91292.0,91290.0,0.02192]
[1767549208259,0.06572187,91294.0,91289.0,0.01095422]
[1767549208459,0.06572187,91294.0,91292.0,0.000999]
[1767549208460,0.06572245,91293.0,91292.0,0.000999]
[1767549208781,0.06572245,91293.0,91292.0,0.0009104]
[1767549208982,0.05476935,91292.0,91288.0,0.0701147]
[1767549209183,0.06572245,91293.0,91288.0,0.0701147]
[1767549209408,0.01095386,91292.0,91288.0,0.08106904]
[1767549209913,0.06572245,91293.0,91288.0,0.13584063]
[1767549210612,0.01095386,91292.0,91288.0,0.08106904]
[1767549212500,0.01095386,91292.0,91288.0,0.05948774]
[1767549213108,0.06572245,91293.0,91288.0,0.11425922]
[1767549213723,0.0109541,91290.0,91287.0,0.04596622]
[1767549213880,0.06572286,91293.0,91288.0,0.07669154]
[1767549214066,0.04742877,91293.0,91288.0,0.03287434]
[1767549214487,0.05838251,91293.0,91289.0,0.01095422]
[1767549214936,0.02099761,91292.0,91288.0,0.08764552]
[1767549215739,0.02099761,91292.0,91289.0,0.06572496]
[1767549216148,0.02099761,91292.0,91289.0,0.06557639]
[1767549216343,0.02099761,91292.0,91290.0,0.05477035]
[1767549216569,0.02099761,91292.0,91290.0,0.05477044]
[1767549217067,0.01095362,91294.0,91290.0,0.06572454]
[1767549217453,0.01095362,91294.0,91290.0,0.11545904]
[1767549217970,0.01095362,91294.0,91290.0,0.0606886]
[1767549218778,0.0657218,91294.0,91290.0,0.0606886]
[1767549219383,0.06572258,91293.0,91290.0,0.0487355]
[1767549219563,0.01095374,91293.0,91290.0,0.0487355]
[1767549220373,0.0657218,91294.0,91290.0,0.0487355]
[1767549220989,0.0657218,91294.0,91290.0,0.04869011]
[1767549221190,0.01095362,91294.0,91290.0,0.11441465]
[1767549221359,0.0109535,91295.0,91289.0,0.05477006]
[1767549221558,0.0109535,91295.0,91290.0,0.05477021]
[1767549222357,0.0109535,91295.0,91291.0,0.06572384]
[1767549222554,0.06572088,91296.0,91291.0,0.06572384]
[1767549222901,0.06572062,91296.0,91291.0,0.06572384]
[1767549224917,0.06572104,91295.0,91291.0,0.01095398]
[1767549225698,0.06572104,91295.0,91290.0,0.06572431]
[1767549225699,0.04636804,91294.0,91290.0,0.02667829]
[1767549226295,0.04636804,91294.0,91291.0,0.01095398]
[1767549227340,0.04636804,91294.0,91290.0,0.02667829]
[1767549227539,0.04636804,91294.0,91291.0,0.01095398]
[1767549228334,0.0109535,91295.0,91291.0,0.01095398]
[1767549228335,0.05476692,91296.0,91291.0,0.06068848]
[1767549228515,0.0109535,91295.0,91291.0,0.0497345]
[1767549228810,0.06572111,91295.0,91291.0,0.0497345]
[1767549229498,0.0109535,91295.0,91291.0,0.06068848]
[1767549229947,0.01095338,91296.0,91292.0,0.11545767]
[1767549230168,0.06572043,91296.0,91292.0,0.06068836]
[1767549230608,0.06572043,91296.0,91292.0,0.0497345]
[1767549231473,0.0657211,91295.0,91292.0,0.0497345]
[1767549231813,0.06572043,91296.0,91292.0,0.0497345]
[1767549232630,0.0109535,91295.0,91292.0,0.0497345]
[1767549233387,0.01095338,91296.0,91293.0,0.0497345]
[1767549233522,0.01095338,91296.0,91293.0,0.04968912]
[1767549233923,0.01095326,91297.0,91293.0,0.04968912]
[1767549234144,0.01095338,91296.0,91293.0,0.04968912]
[1767549235129,0.0657203,91296.0,91293.0,0.04968912]
[1767549235627,0.01095338,91296.0,91293.0,0.04968912]
[1767549236082,0.06572004,91297.0,91293.0,0.04968912]
[1767549236279,0.01095338,91296.0,91293.0,0.04968912]
[1767549236713,0.06572004,91297.0,91293.0,0.04968912]
[1767549237349,0.01095338,91296.0,91293.0,0.04968912]
[1767549237552,0.06572004,91297.0,91293.0,0.04968912]
[1767549238173,0.01095338,91296.0,91293.0,0.04968912]
[1767549238370,0.01095338,91296.0,91292.0,0.06068836]
[1767549239495,0.06572004,91297.0,91292.0,0.11545747]
[1767549239734,0.06572004,91297.0,91292.0,0.06572297]
[1767549240495,0.0657203,91296.0,91291.0,0.01095398]
[1767549241531,0.0109535,91295.0,91291.0,0.06572342]
[1767549241732,0.0657203,91296.0,91291.0,0.06572342]
[1767549241997,0.01095338,91296.0,91292.0,0.01095386]
[1767549242170,0.06572063,91297.0,91292.0,0.05476883]
[1767549242525,0.06572063,91297.0,91293.0,0.047804]
[1767549242747,0.06572034,91296.0,91293.0,0.047804]
[1767549242910,0.06572063,91297.0,91293.0,0.047804]
[1767549243110,0.01095338,91296.0,91293.0,0.047804]
[1767549243368,0.06572063,91297.0,91293.0,0.047804]
[1767549244130,0.01095326,91297.0,91293.0,0.11352643]
[1767549244355,0.0657196,91297.0,91293.0,0.047804]
[1767549244568,0.0657196,91297.0,91293.0,0.05875774]
[1767549244730,0.0657196,91297.0,91293.0,0.047804]
[1767549245585,0.0657196,91297.0,91293.0,0.05875774]
[1767549246516,0.06572036,91296.0,91293.0,0.047804]
[1767549247230,0.0657196,91297.0,91293.0,0.047804]
[1767549247446,0.01095326,91297.0,91293.0,0.11352632]
[1767549247963,0.06571977,91297.0,91293.0,0.05875774]
[1767549248171,0.01095326,91297.0,91293.0,0.11352642]
[1767549248848,0.01095326,91297.0,91294.0,0.047804]
[1767549249059,0.06571902,91298.0,91294.0,0.05871323]
[1767549249504,0.06571902,91298.0,91294.0,0.04775961]
[1767549249922,0.06571964,91297.0,91294.0,0.04775961]
[1767549250127,0.06571829,91299.0,91294.0,0.11348123]
[1767549250537,0.06571909,91298.0,91294.0,0.05871323]
[1767549252340,0.06571909,91298.0,91294.0,0.04775961]
[1767549252638,0.06571909,91298.0,91294.0,0.04771424]
[1767549254620,0.01095314,91298.0,91294.0,0.1134359]
[1767549254779,0.06571887,91298.0,91294.0,0.05866786]
[1767549254982,0.06571887,91298.0,91294.0,0.04771424]
[1767549255185,0.01095314,91298.0,91294.0,0.05866786]
[1767549255388,0.06571886,91298.0,91294.0,0.1134359]
[1767549255715,0.01095326,91297.0,91294.0,0.04771424]
[1767549256280,0.06571966,91297.0,91294.0,0.04771424]
[1767549256807,0.06571903,91298.0,91294.0,0.04771424]
[1767549257733,0.0109529,91300.0,91295.0,0.0587575]
[1767549257926,0.01095278,91301.0,91298.0,0.000999]
[1767549258127,0.01095278,91301.0,91296.0,0.05875738]
[1767549258328,0.06571712,91301.0,91297.0,0.01095326]
[1767549260148,0.0657177,91300.0,91296.0,0.047804]
[1767549260338,0.0109529,91300.0,91296.0,0.05875738]
[1767549261136,0.0109529,91300.0,91296.0,0.11352418]
[1767549261491,0.06571743,91300.0,91296.0,0.11352418]
[1767549261691,0.06571743,91300.0,91296.0,0.047804]
[1767549262215,0.06571815,91299.0,91296.0,0.047804]
[1767549262961,0.06571815,91299.0,91294.0,0.06572168]
[1767549263151,0.06571815,91299.0,91295.0,0.0587575]
[1767549264009,0.06571823,91299.0,91295.0,0.047804]
[1767549264500,0.06571823,91299.0,91295.0,0.0587575]
[1767549265880,0.06571823,91299.0,91295.0,0.05871213]
[1767549266549,0.01095302,91299.0,91295.0,0.11347955]
[1767549267248,0.01095302,91299.0,91296.0,0.047804]
[1767549267946,0.06571817,91299.0,91296.0,0.047804]
[1767549270423,0.0109529,91300.0,91296.0,0.05875738]
[1767549270664,0.06571673,91301.0,91299.0,0.000953]
[1767549270872,0.0109529,91300.0,91296.0,0.11352381]
[1767549271009,0.06571754,91300.0,91296.0,0.047804]
[1767549271541,0.06571857,91299.0,91296.0,0.047804]
[1767549272516,0.01095302,91299.0,91296.0,0.047804]
[1767549273743,0.06571837,91299.0,91296.0,0.047804]
[1767549275713,0.02195701,91297.0,91294.0,0.01095362]
[1767549275847,0.02100401,91297.0,91294.0,0.01095362]
[1767549276302,0.02100401,91297.0,91294.0,0.06572166]
[1767549276770,0.02100401,91297.0,91294.0,0.06540736]
[1767549279731,0.02100401,91297.0,91293.0,0.06572133]
[1767549279898,0.02100401,91297.0,91294.0,0.06572164]
[1767549280302,0.06571837,91299.0,91295.0,0.06572097]
[1767549280695,0.06571837,91299.0,91294.0,0.06572164]
[1767549281187,0.06571837,91299.0,91295.0,0.04707375]
[1767549282033,0.06571894,91298.0,91295.0,0.04707375]
[1767549284630,0.05476637,91297.0,91295.0,0.04707375]
[1767549284873,0.05476691,91296.0,91289.0,0.01095422]
[1767549285054,0.05476691,91296.0,91288.0,0.1019685]
[1767549285055,0.05477099,91290.0,91288.0,0.03624353]
[1767549285262,0.05477111,91289.0,91288.0,0.03624353]
[1767549285680,0.06572492,91291.0,91288.0,0.03624353]
[1767549285887,0.00868594,91290.0,91288.0,0.03624353]
[1767549286096,0.00868594,91290.0,91288.0,0.09101509]
[1767549286305,0.00868594,91290.0,91288.0,0.01432353]
[1767549286506,0.04890622,91289.0,91288.0,0.01432353]
[1767549287344,0.05477111,91289.0,91288.0,0.01432353]
[1767549287545,0.05477098,91290.0,91288.0,0.01432353]
[1767549287773,0.05477111,91289.0,91288.0,0.01432353]
[1767549290035,0.05477098,91290.0,91288.0,0.01432353]
[1767549290237,0.05477111,91289.0,91288.0,0.01432353]